Cogmind - Beta 14 @@@ ROGUE MODE // 2024.10.09 @ 11:16:59 Player: Gatamar Result: Destroyed by D-53 Grenadier with Mini Grenade Launcher Performance ------------- Evolutions (0) 0 Regions Visited (2) 400 Robots Destroyed (24) 120 Value Destroyed (574) 574 Prototype IDs (0) 0 Alien Tech Used (0) 0 Bonus (-32) -32 TOTAL SCORE: 1062 Bonus ------- Friendly Fire -32 Cogmind --------- Core Integrity 0/250 Matter 259/300 Energy 156/160 System Corruption 1% Temperature Cool (2) Movement Walking (120) Location -10/Mines Parts ------- > --- POWER (1) -------- Light Nuclear Core > --- PROPULSION (2) --- Carbon-fiber Leg Carbon-fiber Leg > --- UTILITY (2) ------ Small Storage Unit Hacking Suite > --- WEAPON (2) ------- Medium Laser Light Assault Rifle > --- INVENTORY (8) ---- Ion Engine Light Treads Aluminum Leg Structural Scanner Terrain Scan Processor Light Armor Plating Hacking Suite Mining Laser Peak State ------------ > --- POWER ------------ Light Nuclear Core > --- PROPULSION ------- Carbon-fiber Leg Carbon-fiber Leg > --- UTILITY ---------- Small Storage Unit Hacking Suite > --- WEAPON ----------- Medium Laser Light Assault Rifle > --- INVENTORY -------- Ion Engine Light Treads Aluminum Leg Structural Scanner Terrain Scan Processor Light Armor Plating Hacking Suite Mining Laser [Rating: 16] Favorites ----------- Power Light Ion Engine Engine Light Ion Engine Power Core Light Nuclear Core Propulsion Light Treads Treads Light Treads Leg Aluminum Leg Utility Small Storage Unit Device Structural Scanner Storage Small Storage Unit Hackware Hacking Suite Weapon Light Assault Rifle Energy Gun Medium Laser Ballistic Gun Light Assault Rifle Build | -11 -10 -10 ------- Run | Yrd Mat Min Slots Evolved . | . . . Power . | . . . Propulsion . | . . . Utility . | . . . Weapon . | . . . Parts Attached 18 | 6 5 7 Power 3 | 1 1 1 Engine 2 | 1 1 . Core 1 | . . 1 Reactor . | . . . Propulsion 8 | 2 . 6 Treads 2 | 2 . . Leg 6 | . . 6 Wheel . | . . . Hover . | . . . Flight . | . . . Utility 3 | 1 2 . Device 1 | . 1 . Storage 1 | 1 . . Processor . | . . . Hackware 1 | . 1 . Protection . | . . . Artifact . | . . . Weapon 4 | 2 2 . Energy Gun 1 | . 1 . Energy Cannon . | . . . Ballistic Gun 3 | 2 1 . Ballistic Cannon . | . . . Launcher . | . . . Special Weapon . | . . . Impact Weapon . | . . . Slashing Weapon . | . . . Piercing Weapon . | . . . Special Melee Weapon . | . . . Unidentified Prototypes . | . . . Parts Lost 3 | . 2 1 Power 1 | . 1 . Propulsion 1 | . . 1 Utility . | . . . Weapon 1 | . 1 . Highest Loss Streak 1 | . 1 1 To Critical Strikes . | . . . Average Slot Usage (%) 98 | . 97 99 Engine 9 | . 12 1 Core 3 | . . 12 Treads 20 | . 28 2 Leg 7 | . . 25 Device 5 | . 7 . Storage 14 | . 14 14 Hackware 7 | . 5 14 Energy Gun 4 | . . 14 Ballistic Gun 23 | . 27 14 Peak Build Rating 16 | 6 10 16 Average Rating 9 | 5 7 12 On Entrance 5 | . 6 10 Naked Turns . | . . . Heaviest Build 13 | 10 11 13 Greatest Support 40 | 40 40 30 Greatest Overweight (x) . | . . . Average Overweight (x) . | . . . Largest Inventory Capacity 8 | 8 8 8 Average Capacity 7 | 7 8 8 Most Carried 8 | 4 8 8 Average Carried 7 | 2 7 8 Final Capacity 8 | 8 8 8 Final Carried 8 | 4 8 8 Class Distribution -------------------- 92% | Mutant 7% | Scavenger-Mutant Dominant Class ---------------- Mutant | -10/Materials Mutant | -10/Mines Resources | -11 -10 -10 ----------- Run | Yrd Mat Min Matter Collected 515 | 236 229 50 Remotely . | . . . Salvage Created 761 | . 523 238 Parts 47 | . 36 11 Haulers Intercepted . | . . . Recyclers Shooed . | . . . Parts Field Recycled . | . . . Retrieved Matter . | . . . Parts Self-Destructed . | . . . Prevented . | . . . Kills | -11 -10 -10 ------- Run | Yrd Mat Min Combat Hostiles Destroyed 18 | . 14 4 Guns 18 | . 14 4 Classes Destroyed 6 | . 5 1 Worker 1 | . 1 . Builder 2 | . 1 1 Operator 2 | . 2 . Swarmer 5 | . 5 . Grunt 13 | . 9 4 Zionite 1 | . . 1 Best Kill Streak 4 | . 4 3 Combat Bots Only 3 | . 3 2 Max Kills in Single Turn 2 | . 1 2 Gunslinging 1 | . . 1 Exploded . | . . . Melee . | . . . Uniques/NPCs Destroyed . | . . . Combat | -11 -10 -10 -------- Run | Yrd Mat Min Hostile Shots Fired 131 | . 98 33 Missed 48 | . 36 12 Damage Taken 931 | . 598 333 Core 251 | . 151 100 Absorbed by Shields . | . . . Regen/Repaired (Parts) 32 | . 32 . Core Remaining (%) 100 | 100 . . Volleys Fired 96 | . 78 18 Largest 2 | . 2 2 Hottest 70 | . 40 70 Shots Fired 190 | . 154 36 Gun 190 | . 154 36 Cannon . | . . . Launcher . | . . . Special . | . . . Kinetic 172 | . 154 18 Thermal 18 | . . 18 Explosive . | . . . Electromagnetic . | . . . Robot Hit Streak 10 | . 9 10 Robot Miss Streak 8 | . 8 2 Penetration Max . | . . . Secondary Targets 3 | . 2 1 Max Gunslinging Chain 1 | . 1 1 Shots Hit Robots 115 | . 90 25 Core Hits 54 | . 41 13 Critical Kills 1 | . 1 . Critical Parts Destroyed . | . . . Critical Strikes 2 | . 1 1 Burn 1 | . . 1 Destroy 1 | . 1 . Melee Attacks . | . . . Impact . | . . . Slashing . | . . . Piercing . | . . . Sneak Attacks . | . . . Combat Hostiles . | . . . Follow-up Attacks . | . . . Damage Inflicted 1046 | . 759 287 Guns 1044 | . 757 287 Cannons . | . . . Explosions . | . . . Melee . | . . . Ramming 2 | . 2 . Kinetic 870 | . 757 113 Thermal 174 | . . 174 Explosive . | . . . Electromagnetic . | . . . Impact . | . . . Slashing . | . . . Piercing . | . . . Highest Corruption 1 | . 1 1 Average Corruption 1 | . 1 1 Corruption Purged . | . . . Corruption Blocked . | . . . Effects 4 | . 4 . Message Errors 1 | . 1 . Matter Fused 3 | . 3 . Overload Shots . | . . . Overflow Damage . | . . . Projectiles . | . . . Explosions . | . . . Melee . | . . . Knockbacks . | . . . Impact . | . . . Kinetic . | . . . Secondary . | . . . Self-Inflicted Damage . | . . . Shots . | . . . Rammed . | . . . Targets Rammed 1 | . 1 . Kicked . | . . . Crushed 1 | . 1 . Highest Temperature 317 | . 18 317 Average Temperature 90 | . 7 135 Received Heat Transfer 330 | . 195 135 Effects 1 | . . 1 Energy Bleed 1 | . . 1 Siege Activations . | . . . Robots Corrupted . | . . . Combat Hostiles . | . . . Parts Fried . | . . . Impact Corruptions . | . . . Robots Melted . | . . . Combat Hostiles . | . . . Parts Melted 1 | . . 1 Heat Transferred 592 | . . 592 Parts Sabotaged . | . . . Parts Stolen . | . . . Parts Stripped . | . . . Power Chain Reactions . | . . . Alert | -11 -10 -10 ------- Run | Yrd Mat Min Peak Influence 203 | . 203 115 Initial 40 | . . 40 Average 72 | . 73 87 Maximum Alert Level 1 | . 1 . Low Security (%) 98 | 100 97 100 Level 1 1 | . 2 . Level 2 . | . . . Level 3 . | . . . Level 4 . | . . . Level 5 . | . . . High Security . | . . . Max Security . | . . . Squads Dispatched 4 | . 4 . Investigation 3 | . 3 . Extermination . | . . . Reinforcement 1 | . 1 . Assault . | . . . Garrison . | . . . Intercept . | . . . Searches Triggered . | . . . Construction Impeded . | . . . Haulers Reinforced . | . . . Active Scanning Responses . | . . . Cargo Convoy Interrupts . | . . . Stealth | -11 -10 -10 --------- Run | Yrd Mat Min Distress Signals 4 | . 4 . Communications Jammed . | . . . Distress Signals . | . . . Times Spotted 40 | . 30 10 Peak Tracking Total 5 | . 4 5 Tactical Retreats 2 | . 2 . Traps | -11 -10 -10 ------- Run | Yrd Mat Min Traps Triggered 2 | . 2 . Indirectly . | . . . Trap Hack Attempts . | . . . Triggered . | . . . Disarmed . | . . . Reprogrammed . | . . . Reused . | . . . Traps Extracted . | . . . Installed . | . . . Triggered . | . . . Machines | -11 -10 -10 ---------- Run | Yrd Mat Min Machines Disabled . | . . . Max in Single Turn . | . . . Machines Repaired . | . . . Machines Dismantled . | . . . Machines Sabotaged . | . . . Overloaded Fab Kills . | . . . Hacking | -11 -10 -10 --------- Run | Yrd Mat Min Machines Accessed 4 | . 4 . Terminals 3 | . 3 . Fabricators . | . . . Repair Stations 1 | . 1 . Recycling Units . | . . . Scanalyzers . | . . . Garrison Access . | . . . Total Hacks 16 | . 16 . Successful 8 | . 8 . Failed 8 | . 8 . Catastrophic . | . . . Database Lockouts . | . . . Manual 3 | . 3 . Terminals 13 | . 13 . Fabricators . | . . . Repair Stations 3 | . 3 . Recycling Units . | . . . Scanalyzers . | . . . Garrison Access . | . . . Terminal Hacks 6 | . 6 . Record 1 | . 1 . Level Access Points 1 | . 1 . Emergency Access Points 1 | . 1 . Unreport Threat 1 | . 1 . Registered Components 1 | . 1 . Zone Layout 1 | . 1 . Fabricator Hacks . | . . . Repair Station Hacks 2 | . 2 . Scan Component 1 | . 1 . Repair 1 | . 1 . Recycling Unit Hacks . | . . . Scanalyzer . | . . . Garrison Access Hacks . | . . . Unauthorized Hacks . | . . . Terminals . | . . . Fabricators . | . . . Repair Stations . | . . . Recycling Units . | . . . Scanalyzers . | . . . Garrison Access . | . . . Data Cores Recovered 1 | . 1 . Used . | . . . Hacking Detections 4 | . 4 . Full Trace Events 1 | . 1 . Feedback Events 1 | . 1 . Corruption 1 | . 1 . Feedback Blocked . | . . . Robot Schematics Acquired . | . . . Robots Built . | . . . Authchips . | . . . Time . | . . . Total Robot Build Rating . | . . . Part Schematics Acquired . | . . . Parts Built . | . . . Authchips . | . . . Time . | . . . Total Part Build Rating . | . . . Parts Repaired 1 | . 1 . Time 26 | . 26 . Parts Recycled . | . . . Recycled Matter . | . . . Retrieved Matter . | . . . Retrieved Components . | . . . Parts Scanalyzed . | . . . Part Schematics Acquired . | . . . Parts Damaged . | . . . Bothacking | -11 -10 -10 ------------ Run | Yrd Mat Min Used RIF Installer . | . . . Robots Hacked . | . . . Non-combat . | . . . Combat . | . . . Robot Hacks Applied . | . . . Relay Couplers Released . | . . . Fabnet Peak Effective % . | . . . Robots Rewired . | . . . Allies Hacked . | . . . Hacks Repelled . | . . . Allies | -11 -10 -10 -------- Run | Yrd Mat Min Total Allies 2 | . . 2 Largest Group 2 | . . 2 Highest-Rated Group 45 | . . 45 Highest-Rated Ally 31 | . . 31 Total Orders . | . . . Ally Attacks 2 | . . 2 Total Damage 41 | . . 41 Kills . | . . . Allies Corrupted . | . . . Allies Melted . | . . . Intel | -11 -10 -10 ------- Run | Yrd Mat Min Robot Analysis Total . | . . . Derelict Logs Recovered . | . . . Drone Launches . | . . . Drone Recoveries . | . . . Exploration | -11 -10 -10 ------------- Run | Yrd Mat Min Turns Passed 1376 | 80 938 358 Spaces Moved 632 | 46 344 242 Core 5 | 5 . . Treads 390 | 41 344 5 Legs 237 | . . 237 Wheels . | . . . Hover . | . . . Flight . | . . . Fastest Speed 50 | 50 160 120 Average Speed 144 | 148 160 120 Slowest Speed 160 | 160 160 160 Overloaded Moves . | . . . Propulsion Burnouts . | . . . Robots Hopped . | . . . Cave-ins Triggered . | . . . Exploration Rate (%) 40 | 5 68 47 Regions Visited 2 Branch Regions 1 Pre-discovered Areas . | . . . Known Exits Taken . | . . . Unknown Exits Taken 2 | 1 1 . Scrap Searched 1 | . . 1 Spaces Dug . | . . . Terrain Destroyed . | . . . Melee . | . . . Projectile . | . . . AOE . | . . . Terrain Rammed . | . . . Walls Destroyed . | . . . Machines Disabled . | . . . Actions | -11 -10 -10 --------- Run | Yrd Mat Min Total 939 | 55 609 275 Wait 173 | . 168 5 Move 630 | 45 343 242 Hop . | . . . Pick Up 14 | 4 10 . Fast Attach 9 | 6 2 1 Attach 3 | . 3 . Detach . | . . . Swap 6 | . . 6 Drop 7 | . 4 3 Fire 96 | . 78 18 Melee . | . . . Ram . | . . . Kick . | . . . Crush 1 | . 1 . Escape Stasis . | . . . Rewire . | . . . Trap . | . . . Miscellaneous . | . . . Route ------- -11/Scrapyard -10/Materials (discovered 4 exits: *Mat x3 / [*Min]) -10/Mines (discovered 1 exit: *Mat) History --------- Turn | Location | Event 5 | -11/Scrapyard | Discovered new exit (range 15) 81 | -11/Scrapyard | Entered Materials 211 | -10/Materials | Repaired Lgt. Assault Rifle 308 | -10/Materials | Build established: Mutant 484 | -10/Materials | Core integrity fell below 50% 518 | -10/Materials | Discovered new exit (range 16) 674 | -10/Materials | Discovered new exit (range 16) 705 | -10/Materials | Identified exit to Materials 915 | -10/Materials | Discovered new exit (range 16) 1019 | -10/Materials | Entered Mines 1105 | -10/Mines | Met a Derelict bent on vengeance 1269 | -10/Mines | Core integrity fell below 20% 1375 | -10/Mines | Assembled infested the area 1377 | -10/Mines | Discovered exit to Materials (range 7) 1377 | -10/Mines | Destroyed by D-53 Grenadier with Mini Grenade Launcher Last Messages --------------- 01270_ G-34 Mercenary destroyed. 01276_ U-05 Engineer destroyed. 01280_ Overheating: Energy bleed (-30). 01280_ Dropped Aluminum Leg. 01314_ A derelict emerges from the shadows: "What are you doing alone down here?" 01316_ VN-993(g): "Well, at least you look like you can take care of yourself!" 01318_ VN-993(g): "I have the funny feeling that things are about to get a lot worse around here, see you around!" 01318_ VN-993(g) slips back into the shadows. 01350_ K-01 Serf collects debris. 01375_ ALERT: Infestation in the mines, dispatching Demolisher response squad. 01377_ EXIT=FOUND: MATERIALS 01377_ C-30 ARC bursts open, deploying its payload. 01377_ D-53 Grenadier unfolds itself. 01377_ R-06 Scavenger destroyed. Map ----- +----------------------------------------------------+ | ??# #?????????????????????????????????????? | | ### #?????????????????????????????????????? | | #?????????????????????????????????????? | | ##?????????????????????????????????????? | | #### #####??????????????????????????????????????? | | #??# #??????????????????????????????????????????? | | #??# #??????????????????????????????????????????? | | ???# #####??????????????????????????????????????? | | ???# #?####?????????????????????????????????? | | ???# ### ### ##????????????????????????????????? | | ???# ### ## ##???????????????????????????????? | | #??# #????????#??????????????????????? | | ##?# #???????# ??????????????????????? | | #?# ##??????? #?????????????????????? | | ### #??????## k#?????????????????????? | | !%=%* ##???### #?????????????????????? | | * =%* % ##?## s##????????????????????? | | ####*% #### #?# #????????????????????? | | ???#=[ ##??## #?# < ????????????????????? | | ??# ##????# #?? ss ?????????????????????? | | ??# ##????## ##?? d ?????????????????????? | | ??## ##???## ##???? %d#?????????????????????? | | ??## #???# ##????? #?????????????????????? | | ??# #???# ##????# ##????????????????????? | | ??# #???# ###?## #????????????????????? | | ### #????## ### @ # #??????????????????? | | ##?????# !=* ##?????????????????? | | ### #??????## [%= #??????????? | | ??# #???????#### # ## #??????????? | | ??# ##?????????## #######??? a?????????? | | ??# ##?????????## ##??????????? ??????????? | | ??# #??????????#####?????????????? ??????????? | | ??# #?????????????????????????????????????????? | | ??# ######????????????????????????????????????? | | ??# #????????????????????????????????????? | | ??# #????????????????????????????????????? | | ?## ###### #????????????????????????????????????? | | ## #?????? ???????????????????????????????????? | | # #????????#??????????????????????????????????? | | # #???????????????????????????????????????????? | | # #????#########??????????????????????????????? | | ## #????# #??????????????????????????????? | | ?## #????# #??????????????????????????????? | | ??# #????# =%* #??????????????????????????????? | | ??# #????# [! #??????????????????????????????? | | ??# ###??# #??????????????????????????????? | | ??# !%#??# #??????????????????????????????? | | ??####%#??# """#??????????????????????????????? | | ?????# #### """#??????????????????????????????? | | ?????# """#??????????????????????????????? | +----------------------------------------------------+ Best States ------------- Heat Dissipation 25 Energy Generation 14 Energy Capacity 160 Matter Stores 300 Matter Capacity 300 Sight Range 16 Terrain Scan Density 10 Evasion (%) 55 Recoil Reduction 2 Offensive Hacking 10 Item Schematics ----------------- None Robot Schematics ------------------ None Fabricated ------------ Nothing Alien Tech Used ----------------- None Achievements -------------- None Challenges ------------ None Game ------ Seed ThiefImpulseWheel Manual? 0 Play Time 00:13:57 Cumulative 8.7 hours Start 2024.10.09 @ 11:04:35 End 2024.10.09 @ 11:16:59 Sessions 1 Manual Loads 0 Difficulty Rogue Special Mode None Game No. 29 Rogue 29 Adventurer 0 Explorer 0 Win Type - Total 0 Types 0/0/0/0/0/0/0/0/0 Lore% 5 Gallery% 11 Achievement% 12 Wizard Run 0 Options --------- Layout 1 ASCII 0 Keyboard 0 Movement Mouse Keybinds 0 Fullscreen 1 Font 32/SmallcapsGlow Map View 50x35 Zoom Use 0% Tactical HUD 1 Map Filters NONE Filters NONE Steam 1 RUN: 13494a6c-a225-40e6-8e71-c432a64108e8